fUST/lending_fUST_20260530
["ID","MTS","AMOUNT","RATE_DAILY","PERIOD"]
[423410823,1780089042000,-1403.91277506,0.0002061,2]
[423410834,1780089042000,-150.97,0.00020646,2]
[423410825,1780089042000,-2000.0,0.00020616,2]
[423410826,1780089042000,-1681.0,0.00020624,120]
[423410828,1780089042000,-1177.0,0.00020624,120]
[423410831,1780089042000,-800.0,0.00020635,2]
[423410829,1780089042000,-800.0,0.00020632,2]
[423410837,1780089042000,-2402.0,0.00020655,120]
[423410836,1780089042000,-800.0,0.00020654,2]
[423410839,1780089042000,-403.0,0.00020659,120]
[423410816,1780089042000,-180.0,0.00020588,120]
[423410876,1780089042000,-1000.0,0.00020821,10]
[423410832,1780089042000,-5480.27821116,0.00020645,120]
[423410881,1780089042000,-259.20599093,0.000209,2]
[423410916,1780089042000,-713.65953813,0.00020978,120]
[423410918,1780089042000,-713.65953813,0.00020978,120]
[423410913,1780089042000,-713.65953813,0.00020978,120]
[423410914,1780089042000,-217.43815264,0.00020978,120]
[423410917,1780089042000,-713.65953813,0.00020978,120]
[423410919,1780089042000,-713.65953813,0.00020978,120]
[423410920,1780089042000,-713.65953813,0.00020978,120]
[423410942,1780089042000,-235.94079454,0.00020978,120]
[423410922,1780089042000,-713.65953813,0.00020978,120]
[423410921,1780089042000,-713.65953813,0.00020978,120]
[423410923,1780089042000,-713.65953813,0.00020978,120]
[423410924,1780089042000,-713.65953813,0.00020978,120]
[423410925,1780089042000,-713.65953813,0.00020978,120]
[423410927,1780089042000,-713.65953813,0.00020978,120]
[423410926,1780089042000,-713.65953813,0.00020978,120]
[423410928,1780089042000,-713.65953813,0.00020978,120]
[423410929,1780089042000,-713.65953813,0.00020978,120]
[423410930,1780089042000,-713.65953813,0.00020978,120]
[423410932,1780089042000,-713.65953813,0.00020978,120]
[423410931,1780089042000,-713.65953813,0.00020978,120]
[423410936,1780089042000,-713.65953813,0.00020978,120]
[423410933,1780089042000,-713.65953813,0.00020978,120]
[423410935,1780089042000,-713.65953813,0.00020978,120]
[423410934,1780089042000,-713.65953813,0.00020978,120]
[423410939,1780089042000,-696.38284612,0.00020978,2]
[423410937,1780089042000,-713.65953813,0.00020978,120]
[423410879,1780089042000,-217.62,0.00020837,30]
[423410941,1780089042000,-352.74430837,0.00020978,120]
[423410940,1780089042000,-853.32183013,0.00020978,120]
[423410915,1780089042000,-713.65953813,0.00020978,120]
[423410912,1780089042000,-217.43815264,0.00020978,120]
[423410938,1780089042000,-217.43815262,0.00020978,120]
[423410908,1780089042000,-217.43815264,0.00020978,120]
[423410911,1780089042000,-713.65953813,0.00020978,120]
[423410883,1780089042000,-3052.0,0.00020978,120]
[423410884,1780089042000,-15812.86760596,0.00020978,7]
[423410882,1780089042000,-176.7,0.000209,2]
[423410885,1780089042000,-1028.81,0.00020978,2]
[423410888,1780089042000,-1000.0,0.00020978,14]
[423410887,1780089042000,-925.01058493,0.00020978,7]
[423410890,1780089042000,-324.67103969,0.00020978,7]
[423410889,1780089042000,-1000.0,0.00020978,21]
[423410886,1780089042000,-19999.999999,0.00020978,2]
[423410892,1780089042000,-1619.34619488,0.00020978,14]
[423410891,1780089042000,-2001.15,0.00020978,2]
[423410893,1780089042000,-1376.78802749,0.00020978,15]
[423410895,1780089042000,-312.5498979,0.00020978,5]
[423410880,1780089042000,-151.28455066,0.00020846,2]
[423410894,1780089042000,-20264.09852618,0.00020978,2]
[423410896,1780089042000,-500.0,0.00020978,5]
[423410907,1780089042000,-713.65953813,0.00020978,120]
[423410904,1780089042000,-217.43815264,0.00020978,120]
[423410900,1780089042000,-3000.0,0.00020978,120]
[423410903,1780089042000,-713.65953813,0.00020978,120]
[423410905,1780089042000,-713.65953813,0.00020978,120]
[423410909,1780089042000,-713.65953813,0.00020978,120]
[423410902,1780089042000,-217.43815264,0.00020978,120]
[423410897,1780089042000,-1577.74113208,0.00020978,10]
[423410906,1780089042000,-217.43815264,0.00020978,120]
[423410910,1780089042000,-217.43815264,0.00020978,120]
[423410899,1780089042000,-500.0,0.00020978,5]
[423410901,1780089042000,-713.65953813,0.00020978,120]
[423410898,1780089042000,-500.0,0.00020978,5]
[423410981,1780089043000,-254.0833681,0.00020978,2]
[423410990,1780089043000,-326.1200344,0.00020978,2]
[423410980,1780089043000,-326.1200344,0.00020978,2]
[423410982,1780089043000,-456.6701554,0.00020978,2]
[423410983,1780089043000,-456.830407,0.00020978,2]
[423410984,1780089043000,-179.560675,0.00020978,2]
[423410991,1780089043000,-151.3251626,0.00020978,2]
[423410989,1780089043000,-456.4610407,0.00020978,2]
[423410986,1780089043000,-456.830407,0.00020978,2]
[423410987,1780089043000,-326.1011568,0.00020978,2]
[423410988,1780089043000,-253.8289197,0.00020978,2]
[423410985,1780089043000,-327.9274363,0.00020978,2]
[423410997,1780089043000,-455.9198614,0.00020978,2]
[423410992,1780089043000,-456.830407,0.00020978,2]
[423410995,1780089043000,-456.830407,0.00020978,2]
[423410994,1780089043000,-326.1200344,0.00020978,2]
[423410996,1780089043000,-151.0,0.00020978,2]
[423410998,1780089043000,-283.416767,0.00020978,2]
[423410999,1780089043000,-151.0,0.00020978,2]
[423411002,1780089043000,-151.0,0.00020978,2]
[423411001,1780089043000,-191.2508077,0.00020978,2]
[423411000,1780089043000,-413.3516908,0.00020978,2]
[423411004,1780089043000,-456.830407,0.00020978,2]
[423411003,1780089043000,-325.9053413,0.00020978,2]
[423410979,1780089043000,-456.8304071,0.00020978,2]
[423410993,1780089043000,-326.1200344,0.00020978,2]
[423410977,1780089043000,-156.34,0.00020978,2]
[423410957,1780089043000,-332.44527966,0.00020978,120]
[423410975,1780089043000,-156.34,0.00020978,2]
[423410943,1780089043000,-285.60768724,0.00020978,120]
[423410944,1780089043000,-1108.14109498,0.00020978,120]
[423410947,1780089043000,-185.85837743,0.00020978,110]
[423410945,1780089043000,-185.85837743,0.00020978,110]
[423410946,1780089043000,-185.85837743,0.00020978,110]
[423410950,1780089043000,-332.44527966,0.00020978,120]
[423410951,1780089043000,-332.44527966,0.00020978,120]
[423410949,1780089043000,-332.44527966,0.00020978,120]
[423410954,1780089043000,-332.44527966,0.00020978,120]
[423410948,1780089043000,-156.1740083,0.00020978,110]
[423410952,1780089043000,-332.44527966,0.00020978,120]
[423410953,1780089043000,-332.44527966,0.00020978,120]
[423410973,1780089043000,-156.34,0.00020978,2]
[423410955,1780089043000,-332.44527966,0.00020978,120]
[423410958,1780089043000,-332.44527966,0.00020978,120]
[423410956,1780089043000,-332.44527966,0.00020978,120]
[423410960,1780089043000,-332.44527966,0.00020978,120]
[423410961,1780089043000,-332.44527966,0.00020978,120]
[423410962,1780089043000,-332.44527966,0.00020978,120]
[423410966,1780089043000,-156.34,0.00020978,2]
[423410964,1780089043000,-166.22263982,0.00020978,120]
[423410963,1780089043000,-166.22263983,0.00020978,120]
[423410965,1780089043000,-156.31,0.00020978,2]
[423410970,1780089043000,-156.34,0.00020978,2]
[423410968,1780089043000,-156.34,0.00020978,2]
[423410978,1780089043000,-156.34,0.00020978,2]
[423410959,1780089043000,-332.44527966,0.00020978,120]
[423411007,1780089043000,-326.1200344,0.00020978,2]
[423411006,1780089043000,-151.0,0.00020978,2]
[423411008,1780089043000,-456.830407,0.00020978,2]
[423411034,1780089043000,-175.32896031,0.00020978,7]
[423411041,1780089043000,-456.830407,0.00020978,2]
[423411040,1780089043000,-152.0365196,0.00020978,2]
[423411042,1780089043000,-326.1200344,0.00020978,2]
[423411043,1780089043000,-456.7200949,0.00020978,2]
[423411044,1780089043000,-456.5818264,0.00020978,2]
[423411046,1780089043000,-249.5400998,0.00020978,2]
[423411045,1780089043000,-326.0419999,0.00020978,2]
[423411047,1780089043000,-456.8304071,0.00020978,2]
[423411048,1780089043000,-326.1200344,0.00020978,2]
[423411049,1780089043000,-456.531998,0.00020978,2]
[423411053,1780089043000,-456.6596809,0.00020978,2]
[423411050,1780089043000,-250.0,0.00020978,30]
[423411052,1780089043000,-372.00887,0.00020978,10]
[423411055,1780089043000,-196.4636486,0.00020978,2]
[423411058,1780089043000,-326.1200344,0.00020978,2]
[423411057,1780089043000,-441.65028066,0.00020978,2]
[423411054,1780089043000,-325.9729205,0.00020978,2]
[423411056,1780089043000,-325.4988674,0.00020978,2]
[423411060,1780089043000,-325.9976367,0.00020978,2]
[423411059,1780089043000,-456.7502813,0.00020978,2]
[423411061,1780089043000,-151.8697544,0.00020978,2]
[423411063,1780089043000,-456.4179811,0.00020978,2]
[423411062,1780089043000,-456.830407,0.00020978,2]
[423411005,1780089043000,-456.7807192,0.00020978,2]
[423411036,1780089043000,-456.8304071,0.00020978,2]
[423411038,1780089043000,-326.1200344,0.00020978,2]
[423411051,1780089043000,-494.017742,0.00020978,30]
[423411039,1780089043000,-326.0859053,0.00020978,2]
[423411009,1780089043000,-456.830407,0.00020978,2]
[423411037,1780089043000,-151.0,0.00020978,2]
[423411012,1780089043000,-219.038774,0.00020978,2]
[423411010,1780089043000,-151.1958852,0.00020978,2]
[423411013,1780089043000,-456.830407,0.00020978,2]
[423411011,1780089043000,-326.1200344,0.00020978,2]
[423411014,1780089043000,-151.0,0.00020978,2]
[423411016,1780089043000,-151.0,0.00020978,2]
[423411017,1780089043000,-247.0839608,0.00020978,2]
[423411018,1780089043000,-151.0,0.00020978,2]
[423411020,1780089043000,-456.830407,0.00020978,2]
[423411019,1780089043000,-326.0117555,0.00020978,2]
[423411021,1780089043000,-151.0,0.00020978,2]
[423411015,1780089043000,-326.1200344,0.00020978,2]
[423411031,1780089043000,-456.830407,0.00020978,2]
[423411024,1780089043000,-151.0,0.00020978,2]
[423411025,1780089043000,-284.522101,0.00020978,120]
[423411022,1780089043000,-517.4222526,0.00020978,2]
[423411026,1780089043000,-284.522101,0.00020978,60]
[423411028,1780089043000,-164.0764907,0.00020978,2]
[423411027,1780089043000,-151.0,0.00020978,2]
[423411029,1780089043000,-325.7646587,0.00020978,2]
[423411030,1780089043000,-195.0870348,0.00020978,2]
[423411033,1780089043000,-175.32896031,0.00020978,7]
[423411023,1780089043000,-456.830407,0.00020978,2]
[423411032,1780089043000,-151.0,0.00020978,2]
[423411035,1780089043000,-175.32896031,0.00020978,7]
[423411102,1780089044000,-151.0,0.00020978,2]
[423411105,1780089044000,-10000.0,0.00021,5]
[423411097,1780089044000,-451.806994,0.00020978,2]
[423411106,1780089044000,-280.37548426,0.00021,2]
[423411104,1780089044000,-1000.0,0.00020999,8]
[423411103,1780089044000,-156.0,0.00020978,120]
[423411095,1780089044000,-151.0,0.00020978,2]
[423411098,1780089044000,-451.806994,0.00020978,2]
[423411100,1780089044000,-451.806994,0.00020978,2]
[423411099,1780089044000,-451.806994,0.00020978,2]
[423411109,1780089044000,-204.95,0.00021,7]
[423411101,1780089044000,-151.0,0.00020978,2]
[423411107,1780089044000,-46021.80618266,0.00021,2]
[423411121,1780089044000,-3000.0,0.0002105,2]
[423411110,1780089044000,-338.41,0.00021,30]
[423411112,1780089044000,-338.41,0.00021,30]
[423411115,1780089044000,-3000.0,0.00021,2]
[423411114,1780089044000,-2796.21324884,0.00021,2]
[423411116,1780089044000,-3052.0,0.00021,2]
[423411117,1780089044000,-3000.0,0.0002101,2]
[423411111,1780089044000,-338.41,0.00021,30]
[423411113,1780089044000,-10003.94470907,0.00021,120]
[423411119,1780089044000,-3000.0,0.0002103,2]
[423411120,1780089044000,-3000.0,0.0002104,2]
[423411118,1780089044000,-3000.0,0.0002102,2]
[423411122,1780089044000,-3000.0,0.0002106,2]
[423411096,1780089044000,-151.0,0.00020978,2]
[423411108,1780089044000,-50000.0,0.00021,2]
[423411093,1780089044000,-199.608469,0.00020978,2]
[423411065,1780089044000,-326.0117557,0.00020978,2]
[423411090,1780089044000,-151.0,0.00020978,2]
[423411123,1780089044000,-3000.0,0.0002107,2]
[423411066,1780089044000,-161.0145025,0.00020978,2]
[423411064,1780089044000,-326.1200344,0.00020978,2]
[423411068,1780089044000,-324.8604042,0.00020978,2]
[423411067,1780089044000,-456.830407,0.00020978,2]
[423411070,1780089044000,-326.1200344,0.00020978,2]
[423411071,1780089044000,-326.1011569,0.00020978,2]
[423411069,1780089044000,-456.7502812,0.00020978,2]
[423411073,1780089044000,-492.9731614,0.00020978,2]
[423411072,1780089044000,-413.425774,0.00020978,2]
[423411074,1780089044000,-325.8352187,0.00020978,2]
[423411076,1780089044000,-151.0,0.00020978,2]
[423411075,1780089044000,-456.4282095,0.00020978,2]
[423411094,1780089044000,-199.608469,0.00020978,2]
[423411077,1780089044000,-151.0,0.00020978,2]
[423411079,1780089044000,-342.256599,0.00020978,2]
[423411081,1780089044000,-342.256599,0.00020978,2]
[423411080,1780089044000,-342.256599,0.00020978,2]
[423411082,1780089044000,-342.256599,0.00020978,2]
[423411083,1780089044000,-195.172164,0.00020978,2]
[423411084,1780089044000,-195.172164,0.00020978,2]
[423411085,1780089044000,-195.172164,0.00020978,2]
[423411086,1780089044000,-195.172164,0.00020978,2]
[423411087,1780089044000,-151.0,0.00020978,2]
[423411092,1780089044000,-199.608469,0.00020978,2]
[423411089,1780089044000,-151.0,0.00020978,2]
[423411091,1780089044000,-199.608469,0.00020978,2]
[423411088,1780089044000,-151.0,0.00020978,2]
[423411078,1780089044000,-151.0,0.00020978,2]
[423411124,1780089044000,-3000.0,0.0002108,2]
[423411141,1780089044000,-2796.21324884,0.000212,2]
[423411127,1780089044000,-3000.0,0.000211,2]
[423411159,1780089044000,-1500.0,0.0002126,2]
[423411165,1780089044000,-3000.0,0.000213,2]
[423411161,1780089044000,-481.0,0.00021262,120]
[423411160,1780089044000,-2315.072252,0.0002126,2]
[423411163,1780089044000,-3000.0,0.0002128,2]
[423411162,1780089044000,-3000.0,0.0002127,2]
[423411164,1780089044000,-3000.0,0.0002129,2]
[423411166,1780089044000,-3000.0,0.0002131,2]
[423411167,1780089044000,-3000.0,0.0002132,2]
[423411169,1780089044000,-3000.0,0.0002134,2]
[423411170,1780089044000,-3000.0,0.0002135,2]
[423411168,1780089044000,-3000.0,0.0002133,2]
[423411171,1780089044000,-185.0,0.00021356,2]
[423411157,1780089044000,-1500.0,0.0002126,2]
[423411174,1780089044000,-5520.30299342,0.00021364,120]
[423411175,1780089044000,-245.6,0.0002137,2]
[423411176,1780089044000,-3000.0,0.0002137,2]
[423411172,1780089044000,-443.0,0.00021356,2]
[423411177,1780089044000,-3000.0,0.0002138,2]
[423411178,1780089044000,-3000.0,0.0002139,2]
[423411179,1780089044000,-190.0,0.000214,120]
[423411182,1780089044000,-3000.0,0.0002141,2]
[423411180,1780089044000,-2796.21324884,0.000214,2]
[423411183,1780089044000,-377.0,0.00021417,120]
[423411181,1780089044000,-3000.0,0.000214,2]
[423411185,1780089044000,-3609.13038,0.0002143,2]
[423411186,1780089044000,-166.0,0.00021444,120]
[423411125,1780089044000,-3000.0,0.0002109,2]
[423411173,1780089044000,-3000.0,0.0002136,2]
[423411158,1780089044000,-1500.0,0.0002126,2]
[423411184,1780089044000,-3000.0,0.0002142,2]
[423411155,1780089044000,-1500.0,0.0002126,2]
[423411156,1780089044000,-1500.0,0.0002126,2]
[423411126,1780089044000,-245.6,0.00021096,2]
[423411129,1780089044000,-3000.0,0.0002112,2]
[423411131,1780089044000,-3000.0,0.0002114,2]
[423411132,1780089044000,-3000.0,0.0002115,2]
[423411133,1780089044000,-172.03622726,0.00021158,120]
[423411130,1780089044000,-3000.0,0.0002113,2]
[423411135,1780089044000,-200.0,0.00021164,120]
[423411134,1780089044000,-3000.0,0.0002116,2]
[423411138,1780089044000,-3000.0,0.0002118,2]
[423411140,1780089044000,-233.42562294,0.000212,60]
[423411139,1780089044000,-3000.0,0.0002119,2]
[423411136,1780089044000,-377.62104457,0.00021164,2]
[423411187,1780089044000,-200.0,0.00021462,120]
[423411128,1780089044000,-3000.0,0.0002111,2]
[423411143,1780089044000,-349.74190772,0.00021207,2]
[423411151,1780089044000,-1500.0,0.0002126,2]
[423411154,1780089044000,-1500.0,0.0002126,2]
[423411152,1780089044000,-1500.0,0.0002126,2]
[423411153,1780089044000,-1500.0,0.0002126,2]
[423411137,1780089044000,-3000.0,0.0002117,2]
[423411147,1780089044000,-3000.0,0.0002124,2]
[423411150,1780089044000,-1500.0,0.0002126,2]
[423411148,1780089044000,-3000.0,0.0002125,2]
[423411146,1780089044000,-3000.0,0.0002123,2]
[423411144,1780089044000,-3000.0,0.0002121,2]
[423411145,1780089044000,-3000.0,0.0002122,2]
[423411142,1780089044000,-3000.0,0.000212,2]
[423411149,1780089044000,-3000.0,0.0002126,2]
[423411227,1780089045000,-176.7,0.000219,2]
[423411226,1780089045000,-205.94,0.00021894,2]
[423411225,1780089045000,-173.0,0.000218,120]
[423411224,1780089045000,-162.0,0.00021745,120]
[423411218,1780089045000,-724.0,0.00021695,120]
[423411222,1780089045000,-2796.21324884,0.000217,2]
[423411221,1780089045000,-248.0,0.00021695,120]
[423411228,1780089045000,-2796.21324884,0.000219,2]
[423411220,1780089045000,-355.0,0.00021695,120]
[423411219,1780089045000,-506.0,0.00021695,120]
[423411223,1780089045000,-198.0,0.0002174,120]
[423411229,1780089045000,-5136.27625462,0.00021918,2]
[423411235,1780089045000,-495.56,0.00021918,120]
[423411232,1780089045000,-495.56,0.00021918,120]
[423411231,1780089045000,-495.56,0.00021918,120]
[423411230,1780089045000,-2383.16728669,0.00021918,2]
[423411234,1780089045000,-495.56,0.00021918,120]
[423411241,1780089045000,-480.42099304,0.00021918,7]
[423411238,1780089045000,-323.31,0.00021918,120]
[423411240,1780089045000,-320.28066203,0.00021918,7]
[423411239,1780089045000,-160.14033101,0.00021918,7]
[423411237,1780089045000,-495.56,0.00021918,120]
[423411236,1780089045000,-495.56,0.00021918,120]
[423411216,1780089045000,-403.0,0.00021692,120]
[423411243,1780089045000,-167.67888323,0.00021918,7]
[423411233,1780089045000,-495.56,0.00021918,120]
[423411217,1780089045000,-283.0,0.00021692,120]
[423411201,1780089045000,-173.0,0.00021573,120]
[423411213,1780089045000,-1681.0,0.00021655,120]
[423411242,1780089045000,-640.56132405,0.00021918,7]
[423411188,1780089045000,-194.0,0.00021466,120]
[423411191,1780089045000,-156.0,0.00021489,30]
[423411189,1780089045000,-289.0,0.00021479,120]
[423411190,1780089045000,-3052.0,0.00021489,30]
[423411193,1780089045000,-13005.01989321,0.000215,2]
[423411195,1780089045000,-256.0,0.00021518,120]
[423411194,1780089045000,-331.03,0.000215,2]
[423411196,1780089045000,-202.0,0.0002153,120]
[423411192,1780089045000,-1051.03496299,0.000215,2]
[423411199,1780089045000,-278.0,0.00021552,120]
[423411204,1780089045000,-455.59,0.000216,2]
[423411215,1780089045000,-2402.0,0.00021688,120]
[423411202,1780089045000,-577.0,0.00021575,120]
[423411198,1780089045000,-824.0,0.00021541,120]
[423411200,1780089045000,-179.0,0.00021555,120]
[423411203,1780089045000,-200.0,0.00021582,2]
[423411205,1780089045000,-454.91,0.000216,2]
[423411207,1780089045000,-227.74479404,0.000216,2]
[423411208,1780089045000,-767.15540412,0.000216,30]
[423411206,1780089045000,-445.0713,0.000216,2]
[423411209,1780089045000,-180.0,0.00021617,120]
[423411210,1780089045000,-180.0,0.00021617,120]
[423411211,1780089045000,-165.0,0.00021633,120]
[423411212,1780089045000,-245.6,0.00021644,2]
[423411214,1780089045000,-1177.0,0.00021655,120]
[423411197,1780089045000,-177.0,0.00021537,120]
[423411245,1780089045000,-503.03664968,0.00021918,7]
[423411255,1780089045000,-611.06940112,0.00021918,2]
[423411246,1780089045000,-670.71553291,0.00021918,7]
[423411281,1780089045000,-245.6,0.00022192,2]
[423411278,1780089045000,-1058.0,0.00022026,7]
[423411276,1780089045000,-3052.0,0.00022,2]
[423411282,1780089045000,-838.39441614,0.00022222,7]
[423411277,1780089045000,-200.0,0.00022001,2]
[423411275,1780089045000,-158.0,0.00022,2]
[423411284,1780089045000,-970.93980583,0.00022225,2]
[423411283,1780089045000,-800.70165507,0.00022222,7]
[423411286,1780089045000,-251.71322566,0.00022296,30]
[423411285,1780089045000,-763.8367514,0.00022225,2]
[423411288,1780089045000,-481.0,0.00022325,120]
[423411287,1780089045000,-767.15540412,0.000223,30]
[423411279,1780089045000,-5661.56748145,0.00022083,120]
[423411294,1780089045000,-194.0,0.00022539,120]
[423411291,1780089045000,-3052.0,0.00022489,30]
[423411293,1780089045000,-1044.50962525,0.000225,2]
[423411244,1780089045000,-335.35776646,0.00021918,7]
[423411292,1780089045000,-156.0,0.00022489,30]
[423411295,1780089045000,-177.0,0.00022614,120]
[423411296,1780089045000,-6227.10063605,0.00022677,2]
[423411297,1780089045000,-1006.07329937,0.00022678,7]
[423411298,1780089045000,-1165.12776699,0.00022685,2]
[423411299,1780089045000,-916.60410168,0.00022685,2]
[423411300,1780089045000,-190.0,0.000227,120]
[423411302,1780089045000,-202.08484988,0.000228,2]
[423411301,1780089045000,-259.07,0.000228,2]
[423411290,1780089045000,-245.73,0.00022466,2]
[423411280,1780089045000,-190.0,0.000221,120]
[423411289,1780089045000,-200.0,0.00022421,2]
[423411270,1780089045000,-11900.0,0.00021978,7]
[423411272,1780089045000,-174.94613265,0.00022,10]
[423411250,1780089045000,-776.75184466,0.00021918,2]
[423411253,1780089045000,-305.53470056,0.00021918,2]
[423411252,1780089045000,-156.4,0.00021918,2]
[423411248,1780089045000,-388.37592233,0.00021918,2]
[423411251,1780089045000,-152.76735028,0.00021918,2]
[423411254,1780089045000,-458.30205084,0.00021918,2]
[423411247,1780089045000,-194.18796117,0.00021918,2]
[423411256,1780089045000,-245.6,0.00021918,2]
[423411258,1780089045000,-429.2426,0.00021918,4]
[423411257,1780089045000,-368.5,0.00021918,4]
[423411260,1780089045000,-429.2426,0.00021918,4]
[423411249,1780089045000,-582.5638835,0.00021918,2]
[423411262,1780089045000,-429.2426,0.00021918,2]
[423411259,1780089045000,-429.2426,0.00021918,4]
[423411274,1780089045000,-7073.00133087,0.00022,120]
[423411271,1780089045000,-156.0,0.00021978,120]
[423411273,1780089045000,-7000.0,0.00022,30]
[423411269,1780089045000,-1223.0,0.00021978,2]
[423411266,1780089045000,-2912.75,0.00021978,2]
[423411268,1780089045000,-500.0,0.00021978,30]
[423411265,1780089045000,-646.23,0.00021978,2]
[423411264,1780089045000,-3052.0,0.00021978,120]
[423411263,1780089045000,-578.29391129,0.0002196,10]
[423411261,1780089045000,-429.2426,0.00021918,4]
[423411267,1780089045000,-479.56,0.00021978,120]
[423411324,1780089046000,-1028.0,0.00023,15]
[423411326,1780089046000,-500.0,0.00023,15]
[423411325,1780089046000,-2000.0,0.00023,30]
[423411327,1780089046000,-200.0,0.00023,7]
[423411328,1780089046000,-767.15540412,0.00023,10]
[423411332,1780089046000,-380.00803435,0.00023207,2]
[423411331,1780089046000,-161.0,0.00023039,2]
[423411337,1780089046000,-190.0,0.000234,120]
[423411329,1780089046000,-160.0,0.00023,2]
[423411333,1780089046000,-200.0,0.0002326,2]
[423411335,1780089046000,-1173.75218259,0.00023362,7]
[423411322,1780089046000,-1000.0,0.00023,10]
[423411339,1780089046000,-838424.0162,0.00023444,2]
[423411341,1780089046000,-151.0,0.00023444,2]
[423411343,1780089046000,-151.0,0.00023444,2]
[423411351,1780089046000,-342.256599,0.00023444,2]
[423411330,1780089046000,-3052.0,0.00023,2]
[423411323,1780089046000,-1000.0,0.00023,10]
[423411315,1780089046000,-156.0,0.00022978,120]
[423411319,1780089046000,-1000.0,0.00023,10]
[423411354,1780089046000,-195.172164,0.00023444,2]
[423411303,1780089046000,-363.93,0.000228,2]
[423411305,1780089046000,-300.0,0.00022802,2]
[423411304,1780089046000,-5842.85675175,0.00022801,120]
[423411307,1780089046000,-151.0,0.00022813,120]
[423411306,1780089046000,-151.0,0.00022813,120]
[423411308,1780089046000,-1000.0,0.00022815,10]
[423411310,1780089046000,-1000.0,0.00022815,10]
[423411311,1780089046000,-162.0,0.00022832,120]
[423411309,1780089046000,-1000.0,0.00022815,10]
[423411312,1780089046000,-200.0,0.0002284,2]
[423411313,1780089046000,-176.7,0.000229,2]
[423411314,1780089046000,-3052.0,0.00022978,120]
[423411316,1780089046000,-290.18566813,0.00023,3]
[423411317,1780089046000,-1000.0,0.00023,10]
[423411318,1780089046000,-1000.0,0.00023,10]
[423411320,1780089046000,-1000.0,0.00023,10]
[423411321,1780089046000,-1000.0,0.00023,10]
[423411355,1780089046000,-195.172164,0.00023444,2]
[423411391,1780089046000,-221.67005,0.00023444,2]
[423411345,1780089046000,-151.0,0.00023444,2]
[423411379,1780089046000,-865.123085,0.00023444,2]
[423411382,1780089046000,-364.06389226,0.00023444,2]
[423411383,1780089046000,-501.05919274,0.00023444,2]
[423411381,1780089046000,-168.190975,0.00023444,2]
[423411386,1780089046000,-228.911393,0.00023444,2]
[423411384,1780089046000,-865.123085,0.00023444,2]
[423411387,1780089046000,-151.0,0.00023444,2]
[423411393,1780089046000,-563.54574021,0.00023489,30]
[423411389,1780089046000,-221.67005,0.00023444,2]
[423411388,1780089046000,-221.67005,0.00023444,2]
[423411390,1780089046000,-221.67005,0.00023444,2]
[423411392,1780089046000,-225.359,0.00023457,2]
[423411394,1780089046000,-936.6377374,9.207e-05,2]
[423411395,1780089046000,-282.3473986,0.00023489,30]
[423411400,1780089046000,-202.0,0.00020978,7]
[423411401,1780089046000,-3590.65927142,0.0002099,10]
[423411353,1780089046000,-342.256599,0.00023444,2]
[423411377,1780089046000,-165.687065,0.00023444,2]
[423411378,1780089046000,-231.849269,0.00023444,2]
[423411380,1780089046000,-865.123085,0.00023444,2]
[423411373,1780089046000,-451.806994,0.00023444,2]
[423411349,1780089046000,-342.256599,0.00023444,2]
[423411347,1780089046000,-342.256599,0.00023444,2]
[423411357,1780089046000,-109.38671818,0.00023444,2]
[423411356,1780089046000,-195.172164,0.00023444,2]
[423411360,1780089046000,-151.0,0.00023444,2]
[423411375,1780089046000,-451.806994,0.00023444,2]
[423411361,1780089046000,-151.0,0.00023444,2]